[Event "*** Titled Tuesday Blitz"]
[Site "Chess.com"]
[Date "2021.02.16"]
[Round "8"]
[White "Oglob71"]
[Black "Arseniy_Nesterov"]
[Result "1-0"]
[WhiteElo "2442"]
[BlackElo "2773"]
[TimeControl "180+1"]
[EndTime "11:34:47 PST"]
[Termination "Oglob71 won by checkmate"]

1. d4 {[%clk 0:03:00.9]} 1... Nf6 {[%clk 0:02:59.5]} 2. Nf3 {[%clk 0:02:58.2]}
2... e6 {[%clk 0:02:59.8]} 3. c4 {[%clk 0:02:57.8]} 3... b6 {[%clk 0:03:00.3]}
4. Bf4 {[%clk 0:02:56]} 4... Bb7 {[%clk 0:02:55.7]} 5. e3 {[%clk 0:02:56.2]}
5... d6 {[%clk 0:02:54.9]} 6. h3 {[%clk 0:02:55.1]} 6... g6 {[%clk 0:02:55.1]}
7. Nc3 {[%clk 0:02:54.7]} 7... Bg7 {[%clk 0:02:55.7]} 8. Be2 {[%clk 0:02:54.8]}
8... O-O {[%clk 0:02:56.1]} 9. Qc2 {[%clk 0:02:55.1]} 9... Nbd7 {[%clk
0:02:56.5]} 10. O-O {[%clk 0:02:55.1]} 10... Qe7 {[%clk 0:02:55.2]} 11. Bh2
{[%clk 0:02:55]} 11... a6 {[%clk 0:02:53.6]} 12. Rfd1 {[%clk 0:02:55]} 12...
Rad8 {[%clk 0:02:51.6]} 13. Rac1 {[%clk 0:02:54.9]} 13... e5 {[%clk 0:02:51.7]}
14. Nd5 {[%clk 0:02:49.7]} 14... Nxd5 {[%clk 0:02:42.7]} 15. cxd5 {[%clk
0:02:49.7]} 15... Rc8 {[%clk 0:02:24.6]} 16. dxe5 {[%clk 0:02:47.4]} 16... Nxe5
{[%clk 0:02:24.5]} 17. Nxe5 {[%clk 0:02:46.2]} 17... Bxe5 {[%clk 0:02:25.4]} 18.
Bxe5 {[%clk 0:02:42.1]} 18... Qxe5 {[%clk 0:02:26.3]} 19. Bf3 {[%clk 0:02:42.6]}
19... Rfe8 {[%clk 0:02:25.8]} 20. Qc3 {[%clk 0:02:41.4]} 20... Qe7 {[%clk
0:02:23.3]} 21. Rd4 {[%clk 0:02:41.2]} 21... Qg5 {[%clk 0:02:15.3]} 22. h4
{[%clk 0:02:38.3]} 22... Qf6 {[%clk 0:01:56.1]} 23. Rc4 {[%clk 0:02:31.8]} 23...
Qxc3 {[%clk 0:01:56]} 24. R4xc3 {[%clk 0:02:30.2]} 24... Re7 {[%clk 0:01:56]}
25. b4 {[%clk 0:02:25.7]} 25... Kf8 {[%clk 0:01:53.6]} 26. g4 {[%clk 0:02:22.4]}
26... Ke8 {[%clk 0:01:47]} 27. Kg2 {[%clk 0:02:22.2]} 27... Kd8 {[%clk 0:01:43]}
28. Kg3 {[%clk 0:02:22.6]} 28... Ra8 {[%clk 0:01:42.3]} 29. a4 {[%clk
0:02:14.9]} 29... Bc8 {[%clk 0:01:36.6]} 30. Bg2 {[%clk 0:02:06.3]} 30... Ra7
{[%clk 0:01:15.3]} 31. f4 {[%clk 0:01:58.1]} 31... Bd7 {[%clk 0:01:15]} 32. Ra1
{[%clk 0:01:57.7]} 32... Kc8 {[%clk 0:00:54.4]} 33. e4 {[%clk 0:01:55.3]} 33...
f6 {[%clk 0:00:39.6]} 34. g5 {[%clk 0:01:54.4]} 34... f5 {[%clk 0:00:37.4]} 35.
Re3 {[%clk 0:01:44.4]} 35... fxe4 {[%clk 0:00:34.3]} 36. Rxe4 {[%clk 0:01:41.5]}
36... Kd8 {[%clk 0:00:28.6]} 37. Rxe7 {[%clk 0:01:38.5]} 37... Kxe7 {[%clk
0:00:29.5]} 38. Be4 {[%clk 0:01:38.6]} 38... Ra8 {[%clk 0:00:23.8]} 39. a5
{[%clk 0:01:37.3]} 39... bxa5 {[%clk 0:00:19.8]} 40. Rxa5 {[%clk 0:01:36.3]}
40... Rb8 {[%clk 0:00:18.4]} 41. Rxa6 {[%clk 0:01:29.2]} 41... Rxb4 {[%clk
0:00:18.8]} 42. Bf3 {[%clk 0:01:26.9]} 42... Rb3 {[%clk 0:00:18.3]} 43. Kf2
{[%clk 0:01:27]} 43... Bf5 {[%clk 0:00:17.7]} 44. Ra7 {[%clk 0:01:26.6]} 44...
Kd7 {[%clk 0:00:17.6]} 45. Ra8 {[%clk 0:01:26.9]} 45... Rb2+ {[%clk 0:00:17.3]}
46. Ke3 {[%clk 0:01:26.4]} 46... Rb3+ {[%clk 0:00:17.3]} 47. Kf2 {[%clk
0:01:26.1]} 47... Rb4 {[%clk 0:00:13.1]} 48. Rh8 {[%clk 0:01:21.9]} 48... Rxf4
{[%clk 0:00:12.4]} 49. Rxh7+ {[%clk 0:01:22]} 49... Kc8 {[%clk 0:00:12.7]} 50.
Ke3 {[%clk 0:01:21.8]} 50... Rb4 {[%clk 0:00:12.3]} 51. h5 {[%clk 0:01:20.1]}
51... gxh5 {[%clk 0:00:12.4]} 52. Rh8+ {[%clk 0:01:20.2]} 52... Kb7 {[%clk
0:00:12.2]} 53. Bxh5 {[%clk 0:01:20.3]} 53... Rh4 {[%clk 0:00:06.9]} 54. Rh6
{[%clk 0:01:16.9]} 54... Kb6 {[%clk 0:00:06.7]} 55. Kf3 {[%clk 0:01:12.6]} 55...
Kc5 {[%clk 0:00:05]} 56. Kg3 {[%clk 0:01:12.9]} 56... Rh1 {[%clk 0:00:03.8]} 57.
Bf7 {[%clk 0:01:10.3]} 57... Rg1+ {[%clk 0:00:03.4]} 58. Kf4 {[%clk 0:01:10.2]}
58... Bc2 {[%clk 0:00:03.9]} 59. Be6 {[%clk 0:01:08.2]} 59... Rf1+ {[%clk
0:00:03.4]} 60. Ke3 {[%clk 0:01:08.4]} 60... Rg1 {[%clk 0:00:03.6]} 61. Kf4
{[%clk 0:01:08.5]} 61... Rf1+ {[%clk 0:00:04]} 62. Ke3 {[%clk 0:01:08.3]} 62...
Re1+ {[%clk 0:00:04.3]} 63. Kd2 {[%clk 0:01:07.2]} 63... Rg1 {[%clk 0:00:02.9]}
64. Kxc2 {[%clk 0:01:07]} 64... Rxg5 {[%clk 0:00:03.5]} 65. Kd3 {[%clk 0:01:04]}
65... c6 {[%clk 0:00:03.2]} 66. dxc6 {[%clk 0:01:03.4]} 66... Kxc6 {[%clk
0:00:04.1]} 67. Bc4 {[%clk 0:00:58.3]} 67... Rg3+ {[%clk 0:00:03]} 68. Kd4
{[%clk 0:00:58.6]} 68... Rg4+ {[%clk 0:00:03.3]} 69. Kc3 {[%clk 0:00:58.9]}
69... Kc5 {[%clk 0:00:03.5]} 70. Bd3 {[%clk 0:00:58.3]} 70... d5 {[%clk
0:00:03]} 71. Rh8 {[%clk 0:00:58.6]} 71... Rf4 {[%clk 0:00:03.1]} 72. Rc8+
{[%clk 0:00:58.7]} 72... Kd6 {[%clk 0:00:03.6]} 73. Kd2 {[%clk 0:00:58.8]} 73...
Ke5 {[%clk 0:00:03.4]} 74. Ke3 {[%clk 0:00:58.3]} 74... Rh4 {[%clk 0:00:03.6]}
75. Re8+ {[%clk 0:00:57]} 75... Kd6 {[%clk 0:00:04]} 76. Rg8 {[%clk 0:00:56.4]}
76... Ke5 {[%clk 0:00:04.1]} 77. Rg5+ {[%clk 0:00:55.2]} 77... Kd6 {[%clk
0:00:04.7]} 78. Be2 {[%clk 0:00:55.4]} 78... Re4+ {[%clk 0:00:04.8]} 79. Kd3
{[%clk 0:00:54.5]} 79... Rf4 {[%clk 0:00:05.3]} 80. Kd2 {[%clk 0:00:52.9]} 80...
Kc5 {[%clk 0:00:05.3]} 81. Bd3 {[%clk 0:00:49]} 81... Kd4 {[%clk 0:00:04.9]} 82.
Be2 {[%clk 0:00:47.6]} 82... Kc5 {[%clk 0:00:04.7]} 83. Ke3 {[%clk 0:00:46.6]}
83... Re4+ {[%clk 0:00:04.9]} 84. Kd3 {[%clk 0:00:46.8]} 84... Rd4+ {[%clk
0:00:05.3]} 85. Ke3 {[%clk 0:00:44.2]} 85... Re4+ {[%clk 0:00:05.5]} 86. Kf2
{[%clk 0:00:44]} 86... Rf4+ {[%clk 0:00:05.4]} 87. Bf3 {[%clk 0:00:44]} 87...
Rd4 {[%clk 0:00:05.9]} 88. Ke3 {[%clk 0:00:43.5]} 88... Kc4 {[%clk 0:00:05.6]}
89. Rg8 {[%clk 0:00:42.9]} 89... Rd3+ {[%clk 0:00:05.6]} 90. Ke2 {[%clk
0:00:42.2]} 90... Ra3 {[%clk 0:00:04.5]} 91. Rc8+ {[%clk 0:00:42]} 91... Kd4
{[%clk 0:00:04.7]} 92. Rd8 {[%clk 0:00:41.6]} 92... Ra5 {[%clk 0:00:04.7]} 93.
Kf2 {[%clk 0:00:40.8]} 93... Ke5 {[%clk 0:00:04.2]} 94. Kg3 {[%clk 0:00:39.8]}
94... Rc5 {[%clk 0:00:04.4]} 95. Kg4 {[%clk 0:00:39.3]} 95... Ra5 {[%clk
0:00:02.8]} 96. Re8+ {[%clk 0:00:39.2]} 96... Kd4 {[%clk 0:00:02.7]} 97. Kf4
{[%clk 0:00:39.4]} 97... Rc5 {[%clk 0:00:03.2]} 98. Rd8 {[%clk 0:00:39.3]} 98...
Ra5 {[%clk 0:00:03.6]} 99. Kf5 {[%clk 0:00:39.4]} 99... Rb5 {[%clk 0:00:03.6]}
100. Ke6 {[%clk 0:00:39.1]} 100... Rb6+ {[%clk 0:00:04.1]} 101. Kf5 {[%clk
0:00:38.8]} 101... Rb5 {[%clk 0:00:04.4]} 102. Rd6 {[%clk 0:00:38.4]} 102... Ra5
{[%clk 0:00:04.4]} 103. Ke6 {[%clk 0:00:38.2]} 103... Ke3 {[%clk 0:00:04.6]}
104. Bxd5 {[%clk 0:00:37.8]} 104... Kf4 {[%clk 0:00:05.2]} 105. Bc6 {[%clk
0:00:37.2]} 105... Re5+ {[%clk 0:00:05.5]} 106. Kd7 {[%clk 0:00:37.4]} 106...
Re3 {[%clk 0:00:05.4]} 107. Rd4+ {[%clk 0:00:37.5]} 107... Kg3 {[%clk
0:00:05.5]} 108. Kd6 {[%clk 0:00:36.7]} 108... Kf2 {[%clk 0:00:05.5]} 109. Kc5
{[%clk 0:00:35.9]} 109... Re2 {[%clk 0:00:04.7]} 110. Rf4+ {[%clk 0:00:35.4]}
110... Ke3 {[%clk 0:00:04.7]} 111. Rf6 {[%clk 0:00:34.2]} 111... Kd2 {[%clk
0:00:04.6]} 112. Kd5 {[%clk 0:00:34.4]} 112... Ke3 {[%clk 0:00:03.9]} 113. Bb5
{[%clk 0:00:32.3]} 113... Rb2 {[%clk 0:00:03.6]} 114. Bc4 {[%clk 0:00:31.4]}
114... Rd2+ {[%clk 0:00:03.5]} 115. Ke5 {[%clk 0:00:30.7]} 115... Rf2 {[%clk
0:00:03.6]} 116. Rh6 {[%clk 0:00:30.1]} 116... Rf3 {[%clk 0:00:03.3]} 117. Bd5
{[%clk 0:00:29.7]} 117... Rg3 {[%clk 0:00:03.7]} 118. Kf5 {[%clk 0:00:28.8]}
118... Rg1 {[%clk 0:00:03.1]} 119. Rh3+ {[%clk 0:00:27.5]} 119... Kd4 {[%clk
0:00:03.3]} 120. Ke6 {[%clk 0:00:27.6]} 120... Re1+ {[%clk 0:00:03.2]} 121. Kd6
{[%clk 0:00:27.2]} 121... Re3 {[%clk 0:00:03.1]} 122. Rh4+ {[%clk 0:00:27.2]}
122... Kd3 {[%clk 0:00:03.3]} 123. Kc5 {[%clk 0:00:27.4]} 123... Kc3 {[%clk
0:00:03.3]} 124. Ra4 {[%clk 0:00:24.3]} 124... Kd3 {[%clk 0:00:03.3]} 125. Bc4+
{[%clk 0:00:21.4]} 125... Kc3 {[%clk 0:00:03.4]} 126. Ra3+ {[%clk 0:00:20.9]}
126... Kd2 {[%clk 0:00:03.9]} 127. Ra2+ {[%clk 0:00:20.3]} 127... Kc3 {[%clk
0:00:04.4]} 128. Kd5 {[%clk 0:00:19.7]} 128... Kb4 {[%clk 0:00:03]} 129. Rb2+
{[%clk 0:00:19.5]} 129... Ka4 {[%clk 0:00:03.1]} 130. Kc5 {[%clk 0:00:18.6]}
130... Rg3 {[%clk 0:00:02.6]} 131. Bd5 {[%clk 0:00:14.8]} 131... Rc3+ {[%clk
0:00:02.8]} 132. Kd4 {[%clk 0:00:13.1]} 132... Rg3 {[%clk 0:00:03.7]} 133. Be4
{[%clk 0:00:09]} 133... Ka3 {[%clk 0:00:03.4]} 134. Rb6 {[%clk 0:00:08.1]}
134... Rg4 {[%clk 0:00:03.9]} 135. Kd5 {[%clk 0:00:07.4]} 135... Ka4 {[%clk
0:00:03.2]} 136. Rb1 {[%clk 0:00:05.6]} 136... Ka3 {[%clk 0:00:03.1]} 137. Kd4
{[%clk 0:00:06.1]} 137... Ka4 {[%clk 0:00:02.6]} 138. Rb6 {[%clk 0:00:06.1]}
138... Ka3 {[%clk 0:00:02.9]} 139. Rb8 {[%clk 0:00:06]} 139... Ka4 {[%clk
0:00:01.4]} 140. Kd3 {[%clk 0:00:05.7]} 140... Ka5 {[%clk 0:00:01.2]} 141. Kd4
{[%clk 0:00:05.1]} 141... Ka6 {[%clk 0:00:01.6]} 142. Rb2 {[%clk 0:00:05.2]}
142... Ka5 {[%clk 0:00:02]} 143. Ke5 {[%clk 0:00:05]} 143... Ka4 {[%clk
0:00:01]} 144. Bd5 {[%clk 0:00:04.9]} 144... Rh4 {[%clk 0:00:01.9]} 145. Kd6
{[%clk 0:00:04.8]} 145... Ka3 {[%clk 0:00:02]} 146. Rb3+ {[%clk 0:00:03.2]}
146... Ka4 {[%clk 0:00:02.5]} 147. Rb8 {[%clk 0:00:03.4]} 147... Rg4 {[%clk
0:00:01.9]} 148. Kc5 {[%clk 0:00:03.5]} 148... Ka3 {[%clk 0:00:02.2]} 149. Rb3+
{[%clk 0:00:02.6]} 149... Ka4 {[%clk 0:00:02.6]} 150. Rb1 {[%clk 0:00:03]}
150... Rh4 {[%clk 0:00:02.8]} 151. Ra1# {[%clk 0:00:02.9]} 1-0

[Event "*** Titled Tuesday Blitz"]
[Site "Chess.com"]
[Date "2021.02.16"]
[Round "9"]
[White "chescomhuynya"]
[Black "Alexander_Zubov"]
[Result "0-1"]
[WhiteElo "2590"]
[BlackElo "2977"]
[TimeControl "180+1"]
[EndTime "11:42:44 PST"]
[Termination "Alexander_Zubov won by resignation"]

1. d4 {[%clk 0:03:00.3]} 1... d5 {[%clk 0:02:58.5]} 2. c4 {[%clk 0:02:59.3]}
2... e6 {[%clk 0:02:57.4]} 3. Nf3 {[%clk 0:02:58.2]} 3... Nf6 {[%clk 0:02:56.1]}
4. g3 {[%clk 0:02:58.5]} 4... dxc4 {[%clk 0:02:56]} 5. Bg2 {[%clk 0:02:58.8]}
5... Nc6 {[%clk 0:02:55.6]} 6. Qa4 {[%clk 0:02:58.4]} 6... Bb4+ {[%clk
0:02:53.2]} 7. Bd2 {[%clk 0:02:58.8]} 7... Bd6 {[%clk 0:02:53.3]} 8. Na3 {[%clk
0:02:58.7]} 8... Bxa3 {[%clk 0:02:51.5]} 9. bxa3 {[%clk 0:02:55.7]} 9... Qd5
{[%clk 0:02:49.8]} 10. O-O {[%clk 0:02:49.6]} 10... b5 {[%clk 0:02:48.5]} 11.
Qc2 {[%clk 0:02:49.4]} 11... Bb7 {[%clk 0:02:47.9]} 12. e3 {[%clk 0:02:37.6]}
12... O-O {[%clk 0:02:42.4]} 13. Rab1 {[%clk 0:02:32.5]} 13... a6 {[%clk
0:02:32.5]} 14. Ne5 {[%clk 0:02:32.2]} 14... Qxg2+ {[%clk 0:02:29.3]} 15. Kxg2
{[%clk 0:02:26.5]} 15... Nxd4+ {[%clk 0:02:29.2]} 0-1

[Event "*** Titled Tuesday Blitz"]
[Site "Chess.com"]
[Date "2021.02.16"]
[Round "9"]
[White "jacky72"]
[Black "MasterKroket"]
[Result "1-0"]
[WhiteElo "2688"]
[BlackElo "2510"]
[TimeControl "180+1"]
[EndTime "11:43:27 PST"]
[Termination "jacky72 won by resignation"]

1. d4 {[%clk 0:03:00.9]} 1... Nf6 {[%clk 0:02:59.2]} 2. c4 {[%clk 0:03:01]} 2...
e6 {[%clk 0:02:59.7]} 3. Nf3 {[%clk 0:03:01.1]} 3... d5 {[%clk 0:02:59.5]} 4.
Nc3 {[%clk 0:03:01]} 4... Be7 {[%clk 0:02:57.7]} 5. cxd5 {[%clk 0:02:59.4]} 5...
exd5 {[%clk 0:02:57.8]} 6. Bg5 {[%clk 0:02:59.9]} 6... O-O {[%clk 0:02:57.8]} 7.
Qc2 {[%clk 0:02:59.8]} 7... Nbd7 {[%clk 0:02:58.2]} 8. e3 {[%clk 0:02:59.8]}
8... c6 {[%clk 0:02:58.1]} 9. Bd3 {[%clk 0:03:00.3]} 9... Re8 {[%clk 0:02:58.1]}
10. h3 {[%clk 0:03:00.6]} 10... Nf8 {[%clk 0:02:58.1]} 11. O-O-O {[%clk
0:03:00.2]} 11... g6 {[%clk 0:02:57.1]} 12. Ne5 {[%clk 0:02:56.9]} 12... Ne6
{[%clk 0:02:57.2]} 13. Bh4 {[%clk 0:02:54.8]} 13... Nd7 {[%clk 0:02:47.3]} 14.
Bxe7 {[%clk 0:02:51.5]} 14... Qxe7 {[%clk 0:02:47.6]} 15. f4 {[%clk 0:02:52.4]}
15... Ng7 {[%clk 0:02:45.1]} 16. Rde1 {[%clk 0:02:42.2]} 16... f6 {[%clk
0:02:44.4]} 17. Nf3 {[%clk 0:02:42.7]} 17... Nb6 {[%clk 0:02:36.7]} 18. g4
{[%clk 0:02:39.3]} 18... Qd6 {[%clk 0:02:27]} 19. Kb1 {[%clk 0:02:33.7]} 19...
Nc4 {[%clk 0:02:23.7]} 20. Bxc4 {[%clk 0:02:32.9]} 20... dxc4 {[%clk 0:02:24.2]}
21. g5 {[%clk 0:02:23.3]} 21... Bf5 {[%clk 0:02:15.1]} 22. e4 {[%clk 0:02:22.8]}
22... Qd7 {[%clk 0:02:10.1]} 1-0

[Event "*** Titled Tuesday Blitz"]
[Site "Chess.com"]
[Date "2021.02.16"]
[Round "9"]
[White "Yaacovn"]
[Black "Maddie"]
[Result "1-0"]
[WhiteElo "2713"]
[BlackElo "2037"]
[TimeControl "180+1"]
[EndTime "11:43:28 PST"]
[Termination "Yaacovn won by resignation"]

1. d4 {[%clk 0:03:00.2]} 1... d5 {[%clk 0:02:59.9]} 2. e3 {[%clk 0:02:52.8]}
2... Bf5 {[%clk 0:02:58.7]} 3. Bd3 {[%clk 0:02:44.5]} 3... Bxd3 {[%clk
0:02:57.7]} 4. cxd3 {[%clk 0:02:45.4]} 4... c6 {[%clk 0:02:57]} 5. Nf3 {[%clk
0:02:40.2]} 5... Nf6 {[%clk 0:02:57.3]} 6. O-O {[%clk 0:02:40]} 6... e6 {[%clk
0:02:57.2]} 7. Nc3 {[%clk 0:02:39.4]} 7... Be7 {[%clk 0:02:57]} 8. e4 {[%clk
0:02:39.4]} 8... dxe4 {[%clk 0:02:56.3]} 9. dxe4 {[%clk 0:02:36.6]} 9... O-O
{[%clk 0:02:56.5]} 10. Qe2 {[%clk 0:02:36.2]} 10... Nbd7 {[%clk 0:02:53.6]} 11.
Rd1 {[%clk 0:02:36.1]} 11... Qb6 {[%clk 0:02:51.9]} 12. Be3 {[%clk 0:02:35.8]}
12... c5 {[%clk 0:02:46.3]} 13. d5 {[%clk 0:02:35.5]} 13... exd5 {[%clk
0:02:45]} 14. e5 {[%clk 0:02:35.5]} 14... Ng4 {[%clk 0:02:36.9]} 15. Nxd5 {[%clk
0:02:35.1]} 15... Qd8 {[%clk 0:02:23.8]} 16. Bf4 {[%clk 0:02:30.8]} 16... Re8
{[%clk 0:02:15]} 17. e6 {[%clk 0:02:23.4]} 17... fxe6 {[%clk 0:02:10.8]} 18.
Qxe6+ {[%clk 0:02:23]} 18... Kh8 {[%clk 0:02:11.2]} 19. Qxg4 {[%clk 0:02:21.5]}
19... Nf6 {[%clk 0:02:08.9]} 20. Nxf6 {[%clk 0:02:20.9]} 20... Bxf6 {[%clk
0:02:04.2]} 21. Rxd8 {[%clk 0:02:20.1]} 1-0

[Event "*** Titled Tuesday Blitz"]
[Site "Chess.com"]
[Date "2021.02.16"]
[Round "9"]
[White "The_filthy"]
[Black "anskam"]
[Result "1-0"]
[WhiteElo "2333"]
[BlackElo "1760"]
[TimeControl "180+1"]
[EndTime "11:43:35 PST"]
[Termination "The_filthy won by resignation"]

1. e4 {[%clk 0:03:00.9]} 1... c5 {[%clk 0:02:58.4]} 2. d4 {[%clk 0:03:00.7]}
2... cxd4 {[%clk 0:02:57.5]} 3. c3 {[%clk 0:03:01.3]} 3... dxc3 {[%clk
0:02:56.1]} 4. Nxc3 {[%clk 0:03:02.2]} 4... d6 {[%clk 0:02:55.8]} 5. Nf3 {[%clk
0:03:02.9]} 5... Nc6 {[%clk 0:02:54.3]} 6. Bc4 {[%clk 0:03:03]} 6... Nf6 {[%clk
0:02:52.6]} 7. h3 {[%clk 0:03:00.1]} 7... e6 {[%clk 0:02:52]} 8. O-O {[%clk
0:02:59.7]} 8... Be7 {[%clk 0:02:51.6]} 9. Qe2 {[%clk 0:02:59.6]} 9... O-O
{[%clk 0:02:50.8]} 10. Rd1 {[%clk 0:02:59.7]} 10... Bd7 {[%clk 0:02:46.6]} 11.
Bf4 {[%clk 0:02:41.6]} 11... e5 {[%clk 0:02:43.3]} 12. Bg5 {[%clk 0:02:41.6]}
12... a6 {[%clk 0:02:40.1]} 13. Bxf6 {[%clk 0:02:41.5]} 13... Bxf6 {[%clk
0:02:39.2]} 14. Rxd6 {[%clk 0:02:40.3]} 14... Qc7 {[%clk 0:02:33.5]} 15. Rad1
{[%clk 0:02:34.4]} 15... Nd4 {[%clk 0:02:25.6]} 16. Nxd4 {[%clk 0:02:24.7]}
16... Qxd6 {[%clk 0:02:22]} 17. Ne6 {[%clk 0:02:14.9]} 17... Qc7 {[%clk
0:02:09.9]} 18. Nxc7 {[%clk 0:02:14.3]} 1-0

[Event "*** Titled Tuesday Blitz"]
[Site "Chess.com"]
[Date "2021.02.16"]
[Round "9"]
[White "Hercog"]
[Black "MaevskiyNikolay"]
[Result "0-1"]
[WhiteElo "2362"]
[BlackElo "2526"]
[TimeControl "180+1"]
[EndTime "11:44:06 PST"]
[Termination "MaevskiyNikolay won by resignation"]

1. d4 {[%clk 0:03:00]} 1... d5 {[%clk 0:02:53.9]} 2. c4 {[%clk 0:02:59.8]} 2...
Nc6 {[%clk 0:02:53.9]} 3. Nf3 {[%clk 0:02:57.4]} 3... Bg4 {[%clk 0:02:53.4]} 4.
cxd5 {[%clk 0:02:55.4]} 4... Bxf3 {[%clk 0:02:53.3]} 5. gxf3 {[%clk 0:02:53.5]}
5... Qxd5 {[%clk 0:02:53]} 6. e3 {[%clk 0:02:50.1]} 6... e5 {[%clk 0:02:53.4]}
7. Nc3 {[%clk 0:02:42.9]} 7... Bb4 {[%clk 0:02:53.8]} 8. dxe5 {[%clk 0:02:39.9]}
8... Qxd1+ {[%clk 0:02:35.1]} 9. Kxd1 {[%clk 0:02:39.3]} 9... Bxc3 {[%clk
0:02:35.2]} 10. bxc3 {[%clk 0:02:38.9]} 10... O-O-O+ {[%clk 0:02:32.2]} 11. Kc2
{[%clk 0:02:34.8]} 11... Nxe5 {[%clk 0:02:32.3]} 12. Be2 {[%clk 0:02:34.7]}
12... Ne7 {[%clk 0:02:31.6]} 13. f4 {[%clk 0:02:32.8]} 13... Nd7 {[%clk
0:02:28.1]} 14. Rg1 {[%clk 0:02:27.2]} 14... g6 {[%clk 0:02:28]} 15. c4 {[%clk
0:02:19.2]} 15... Rhe8 {[%clk 0:02:25.2]} 16. Bb2 {[%clk 0:02:17.2]} 16... Nc5
{[%clk 0:02:23.4]} 17. Bd4 {[%clk 0:02:05.1]} 17... Ne4 {[%clk 0:02:16.4]} 18.
f3 {[%clk 0:01:59.1]} 18... c5 {[%clk 0:02:16.6]} 19. Be5 {[%clk 0:01:53.8]}
19... Rd2+ {[%clk 0:02:14.5]} 20. Kb3 {[%clk 0:01:51.9]} 20... Rxe2 {[%clk
0:02:13.5]} 21. fxe4 {[%clk 0:01:51.8]} 21... Rxe3+ {[%clk 0:02:13.7]} 22. Kb2
{[%clk 0:01:48.7]} 22... Rxe4 {[%clk 0:02:13.8]} 0-1

[Event "*** Titled Tuesday Blitz"]
[Site "Chess.com"]
[Date "2021.02.16"]
[Round "9"]
[White "PavelChernomordik"]
[Black "paulrusan"]
[Result "1-0"]
[WhiteElo "2398"]
[BlackElo "2262"]
[TimeControl "180+1"]
[EndTime "11:44:06 PST"]
[Termination "PavelChernomordik won by resignation"]

1. e4 {[%clk 0:03:00.9]} 1... c5 {[%clk 0:02:59]} 2. Nc3 {[%clk 0:03:00]} 2...
e6 {[%clk 0:02:58.6]} 3. f4 {[%clk 0:02:59.5]} 3... a6 {[%clk 0:02:58.4]} 4. g3
{[%clk 0:02:58.9]} 4... b5 {[%clk 0:02:56.6]} 5. Bg2 {[%clk 0:02:58.5]} 5... Bb7
{[%clk 0:02:57]} 6. Qe2 {[%clk 0:02:58.2]} 6... d6 {[%clk 0:02:54.2]} 7. d3
{[%clk 0:02:55.1]} 7... Qc7 {[%clk 0:02:53.4]} 8. Nf3 {[%clk 0:02:54.2]} 8...
Nd7 {[%clk 0:02:52.3]} 9. O-O {[%clk 0:02:53.1]} 9... Ngf6 {[%clk 0:02:51.6]}
10. f5 {[%clk 0:02:49.6]} 10... Be7 {[%clk 0:02:46.2]} 11. fxe6 {[%clk
0:02:48.6]} 11... fxe6 {[%clk 0:02:46]} 12. Ng5 {[%clk 0:02:47]} 12... Nf8
{[%clk 0:02:44.7]} 13. e5 {[%clk 0:02:28]} 13... dxe5 {[%clk 0:02:27]} 14. Bxb7
{[%clk 0:02:26.1]} 14... Qxb7 {[%clk 0:02:26.8]} 15. Qxe5 {[%clk 0:02:26.5]}
15... Qc6 {[%clk 0:01:52.3]} 16. Nce4 {[%clk 0:02:19.7]} 16... N8d7 {[%clk
0:01:44.2]} 17. Qxe6 {[%clk 0:02:11.4]} 17... Rc8 {[%clk 0:01:41.2]} 18. Qf7+
{[%clk 0:02:09.5]} 18... Kd8 {[%clk 0:01:41.1]} 19. Ne6+ {[%clk 0:02:09]} 19...
Qxe6 {[%clk 0:01:38.6]} 20. Qxe6 {[%clk 0:02:08.5]} 1-0

[Event "*** Titled Tuesday Blitz"]
[Site "Chess.com"]
[Date "2021.02.16"]
[Round "9"]
[White "jaramsdal"]
[Black "AntonovaNadezhda"]
[Result "0-1"]
[WhiteElo "2277"]
[BlackElo "2166"]
[TimeControl "180+1"]
[EndTime "11:44:08 PST"]
[Termination "AntonovaNadezhda won by resignation"]

1. e4 {[%clk 0:02:49]} 1... c5 {[%clk 0:02:43.4]} 2. Nf3 {[%clk 0:02:48.6]} 2...
d6 {[%clk 0:02:42.1]} 3. a3 {[%clk 0:02:47.2]} 3... Nf6 {[%clk 0:02:40.5]} 4. b4
{[%clk 0:02:47.5]} 4... cxb4 {[%clk 0:02:34.1]} 5. Bb5+ {[%clk 0:02:30.1]} 5...
Nbd7 {[%clk 0:02:28.5]} 6. Qe2 {[%clk 0:02:30]} 6... bxa3 {[%clk 0:02:25.7]} 7.
Bxa3 {[%clk 0:02:28]} 7... a6 {[%clk 0:02:23.2]} 8. Bc4 {[%clk 0:02:27.5]} 8...
e6 {[%clk 0:02:22.1]} 9. d4 {[%clk 0:02:26.9]} 9... Be7 {[%clk 0:02:20.5]} 10.
O-O {[%clk 0:02:26.7]} 10... O-O {[%clk 0:02:19.6]} 11. Nc3 {[%clk 0:02:24.5]}
11... b5 {[%clk 0:02:18.8]} 12. Ba2 {[%clk 0:02:25]} 12... Bb7 {[%clk
0:02:18.7]} 13. Rab1 {[%clk 0:02:12.8]} 13... Qc7 {[%clk 0:02:08.8]} 14. e5
{[%clk 0:01:48.7]} 14... Qxc3 {[%clk 0:01:58.9]} 15. Bb4 {[%clk 0:01:48.8]}
15... Qc7 {[%clk 0:01:54.6]} 16. exf6 {[%clk 0:01:48.6]} 16... Nxf6 {[%clk
0:01:54.6]} 17. c4 {[%clk 0:01:47.6]} 17... bxc4 {[%clk 0:01:50.9]} 18. Bxc4
{[%clk 0:01:47.4]} 18... Bxf3 {[%clk 0:01:50.3]} 19. Qxf3 {[%clk 0:01:46.7]} 0-1

[Event "*** Titled Tuesday Blitz"]
[Site "Chess.com"]
[Date "2021.02.16"]
[Round "9"]
[White "Chesseyat004"]
[Black "Spalir"]
[Result "0-1"]
[WhiteElo "2499"]
[BlackElo "2675"]
[TimeControl "180+1"]
[EndTime "11:44:11 PST"]
[Termination "Spalir won by resignation"]

1. e4 {[%clk 0:03:00.9]} 1... c5 {[%clk 0:02:59]} 2. Nf3 {[%clk 0:03:00.9]} 2...
d6 {[%clk 0:02:58.2]} 3. d4 {[%clk 0:03:01.3]} 3... cxd4 {[%clk 0:02:58.7]} 4.
Nxd4 {[%clk 0:03:02.2]} 4... Nf6 {[%clk 0:02:57.7]} 5. Nc3 {[%clk 0:03:02.5]}
5... a6 {[%clk 0:02:57]} 6. Be2 {[%clk 0:03:02.5]} 6... e5 {[%clk 0:02:54.7]} 7.
Nb3 {[%clk 0:03:02.3]} 7... Be6 {[%clk 0:02:54.5]} 8. Be3 {[%clk 0:03:01.1]}
8... Be7 {[%clk 0:02:54]} 9. h4 {[%clk 0:03:01.1]} 9... Nc6 {[%clk 0:02:41]} 10.
g4 {[%clk 0:02:44]} 10... d5 {[%clk 0:02:29.8]} 11. g5 {[%clk 0:01:53.2]} 11...
Nxe4 {[%clk 0:02:24.2]} 12. Nxe4 {[%clk 0:01:52.8]} 12... dxe4 {[%clk
0:02:25.1]} 13. Nc5 {[%clk 0:01:23.6]} 13... Bxc5 {[%clk 0:02:13.6]} 14. Bxc5
{[%clk 0:01:23.1]} 14... Qa5+ {[%clk 0:02:13.4]} 15. b4 {[%clk 0:01:23.5]} 15...
Nxb4 {[%clk 0:02:12.5]} 0-1